[Event "British Rapidplay Championship 2023"]
[Site "Mercure Bradford, Bankfield Hotel"]
[Date "2023.04.15"]
[Round "2.6"]
[White "Dong, Bao Nghia"]
[Black "Khoury, Theo"]
[Result "1-0"]
[TimeControl "15 minutes plus 10 seconds per move"]
[WhiteElo "2331"]
[BlackElo "1772"]

1. Nf3 {[%clk 00:15:16]} {[%emt 00:34:59]} d5 {[%clk 00:15:19]} 2. g3 {[%clk
00:15:24]} {[%emt 00:00:01]} Nd7 {[%clk 00:15:28]} {[%emt 00:00:03]} 3. Bg2
{[%clk 00:15:32]} {[%emt 00:00:01]} e5 {[%clk 00:15:36]} {[%emt 00:00:02]} 4.
d3 {[%clk 00:15:36]} {[%emt 00:00:06]} Bd6 {[%clk 00:15:31]} {[%emt 00:00:15]}
5. O-O {[%clk 00:15:41]} {[%emt 00:00:05]} Ngf6 {[%clk 00:15:39]} {[%emt
00:00:03]} 6. c4 {[%clk 00:15:48]} {[%emt 00:00:02]} c6 {[%clk 00:15:42]}
{[%emt 00:00:07]} 7. b3 {[%clk 00:15:00]} {[%emt 00:01:18]} O-O {[%clk
00:15:46]} 8. Ba3 {[%clk 00:15:09]} Qe7 {[%clk 00:15:27]} {[%emt 00:00:16]} 9.
Bxd6 {[%clk 00:15:16]} {[%emt 00:00:03]} Qxd6 {[%clk 00:15:35]} {[%emt
00:00:03]} 10. Qc1 {[%clk 00:15:21]} {[%emt 00:00:05]} b6 {[%clk 00:15:09]}
{[%emt 00:00:36]} 11. Qa3 {[%clk 00:15:14]} {[%emt 00:00:16]} Qxa3 {[%clk
00:14:32]} {[%emt 00:00:46]} 12. Nxa3 {[%clk 00:15:22]} {[%emt 00:00:03]} Bb7
{[%clk 00:14:40]} {[%emt 00:00:02]} 13. Rfc1 {[%clk 00:15:31]} {[%emt
00:00:01]} Rac8 {[%clk 00:14:25]} {[%emt 00:00:25]} 14. Bh3 {[%clk 00:15:37]}
{[%emt 00:00:04]} Rfe8 {[%clk 00:13:55]} {[%emt 00:00:39]} 15. cxd5 {[%clk
00:15:42]} {[%emt 00:00:07]} cxd5 {[%clk 00:13:51]} {[%emt 00:00:13]} 16. Nb5
{[%clk 00:15:50]} {[%emt 00:00:02]} Rc5 {[%clk 00:12:27]} {[%emt 00:01:34]} 17.
Nd6 {[%clk 00:15:54]} {[%emt 00:00:06]} Rb8 {[%clk 00:12:30]} {[%emt 00:00:07]}
18. b4 {[%clk 00:15:52]} {[%emt 00:00:13]} Rxc1+ {[%clk 00:11:25]} {[%emt
00:01:14]} 19. Rxc1 {[%clk 00:15:53]} {[%emt 00:00:09]} e4 {[%clk 00:10:48]}
{[%emt 00:00:47]} 20. Ng5 {[%clk 00:15:43]} {[%emt 00:00:20]} Ne5 {[%clk
00:09:22]} {[%emt 00:01:36]} 21. Ngxf7 {[%clk 00:13:15]} {[%emt 00:02:38]} Nxf7
{[%clk 00:08:57]} {[%emt 00:00:36]} 22. Nxb7 {[%clk 00:10:54]} {[%emt
00:02:31]} Rxb7 {[%clk 00:08:30]} {[%emt 00:00:37]} 23. Rc8+ {[%clk 00:11:02]}
{[%emt 00:00:02]} Nd8 {[%clk 00:08:39]} {[%emt 00:00:01]} 24. Rxd8+ {[%clk
00:11:11]} {[%emt 00:00:01]} Kf7 {[%clk 00:08:48]} {[%emt 00:00:01]} 25. dxe4
{[%clk 00:10:12]} {[%emt 00:01:08]} dxe4 {[%clk 00:08:33]} {[%emt 00:00:24]} 26.
Rc8 {[%clk 00:10:20]} {[%emt 00:00:03]} Nd5 {[%clk 00:07:55]} {[%emt 00:00:48]}
27. Rc4 {[%clk 00:09:41]} {[%emt 00:00:49]} e3 {[%clk 00:06:44]} {[%emt
00:01:22]} 28. fxe3 {[%clk 00:09:21]} {[%emt 00:00:30]} Nxe3 {[%clk 00:06:49]}
{[%emt 00:00:05]} 29. Re4 {[%clk 00:09:28]} {[%emt 00:00:02]} Re7 {[%clk
00:06:49]} {[%emt 00:00:10]} 30. Bg2 {[%clk 00:06:51]} {[%emt 00:02:47]} Rxe4
{[%clk 00:06:27]} {[%emt 00:00:32]} 31. Bxe4 {[%clk 00:06:59]} {[%emt
00:00:01]} h6 {[%clk 00:06:32]} {[%emt 00:00:06]} 32. a4 {[%clk 00:06:49]}
{[%emt 00:00:21]} a5 {[%clk 00:06:38]} {[%emt 00:00:03]} 33. bxa5 {[%clk
00:06:57]} {[%emt 00:00:02]} bxa5 {[%clk 00:06:47]} {[%emt 00:00:01]} 34. Kf2
{[%clk 00:07:03]} {[%emt 00:00:03]} Ng4+ {[%clk 00:06:22]} {[%emt 00:00:36]} 35.
Kg2 {[%clk 00:07:11]} {[%emt 00:00:02]} Ke6 {[%clk 00:06:28]} {[%emt 00:00:04]}
36. h3 {[%clk 00:07:19]} {[%emt 00:00:02]} Ne5 {[%clk 00:06:31]} {[%emt
00:00:07]} 37. Kf2 {[%clk 00:07:18]} {[%emt 00:00:11]} Kd6 {[%clk 00:06:06]}
{[%emt 00:00:35]} 38. Ke3 {[%clk 00:07:21]} {[%emt 00:00:06]} Kc5 {[%clk
00:05:57]} {[%emt 00:00:20]} 39. Kf4 {[%clk 00:07:28]} {[%emt 00:00:02]} Nc4
{[%clk 00:05:25]} {[%emt 00:00:43]} 40. Bc2 {[%clk 00:06:26]} {[%emt 00:01:11]}
Kd4 {[%clk 00:05:10]} {[%emt 00:00:26]} 41. Bd3 {[%clk 00:06:33]} {[%emt
00:00:02]} Nb6 {[%clk 00:04:50]} {[%emt 00:00:32]} 42. Bb5 {[%clk 00:06:41]}
{[%emt 00:00:02]} Nd5 {[%clk 00:04:34]} {[%emt 00:00:25]} 43. Kf3 {[%clk
00:04:59]} {[%emt 00:01:52]} Nc3 {[%clk 00:04:30]} {[%emt 00:00:15]} 44. Be8
{[%clk 00:05:07]} {[%emt 00:00:01]} Kc4 {[%clk 00:03:31]} {[%emt 00:01:09]} 45.
e3 {[%clk 00:05:09]} {[%emt 00:00:08]} Kb4 {[%clk 00:03:30]} {[%emt 00:00:12]}
46. e4 {[%clk 00:05:14]} {[%emt 00:00:05]} Nxa4 {[%clk 00:03:31]} {[%emt
00:00:08]} 47. e5 {[%clk 00:05:23]} {[%emt 00:00:01]} Nc5 {[%clk 00:03:38]}
{[%emt 00:00:03]} 48. Bf7 {[%clk 00:05:13]} {[%emt 00:00:20]} Nd7 {[%clk
00:03:19]} {[%emt 00:00:30]} 49. e6 {[%clk 00:05:19]} {[%emt 00:00:03]} Ne5+
{[%clk 00:03:28]} 50. Ke4 {[%clk 00:05:13]} {[%emt 00:00:16]} Nc6 {[%clk
00:03:37]} {[%emt 00:00:01]} 51. Kd5 {[%clk 00:05:07]} {[%emt 00:00:16]} Ne7+
{[%clk 00:03:46]} {[%emt 00:00:02]} 52. Kd6 {[%clk 00:05:12]} {[%emt 00:00:04]}
Nf5+ {[%clk 00:03:39]} {[%emt 00:00:17]} 53. Kd7 {[%clk 00:05:18]} {[%emt
00:00:03]} Nxg3 {[%clk 00:03:34]} {[%emt 00:00:16]} 54. Bg6 {[%clk 00:04:58]}
{[%emt 00:00:30]} 1-0

[Event "British Rapidplay Championship 2023"]
[Site "Mercure Bradford, Bankfield Hotel"]
[Date "2023.04.15"]
[Round "2.7"]
[White "Hryshchenko, Kamila"]
[Black "Eckersley-Waites, Tom"]
[Result "1-0"]
[TimeControl "15 minutes plus 10 seconds per move"]
[WhiteElo "2019"]
[BlackElo "2304"]

1. e4 {[%clk 00:15:17]} {[%emt 00:00:03]} c5 {[%clk 00:15:07]} {[%emt
00:00:13]} 2. Nf3 {[%clk 00:15:24]} {[%emt 00:00:03]} Nc6 {[%clk 00:15:16]}
{[%emt 00:00:02]} 3. Bb5 {[%clk 00:15:32]} {[%emt 00:00:03]} Nf6 {[%clk
00:15:23]} {[%emt 00:00:02]} 4. d3 {[%clk 00:15:33]} {[%emt 00:00:09]} g6
{[%clk 00:15:25]} {[%emt 00:00:08]} 5. Bxc6 {[%clk 00:15:41]} {[%emt 00:00:03]}
bxc6 {[%clk 00:15:11]} {[%emt 00:00:24]} 6. Be3 {[%clk 00:14:23]} {[%emt
00:01:28]} d6 {[%clk 00:14:08]} {[%emt 00:01:13]} 7. Nbd2 {[%clk 00:14:26]}
{[%emt 00:00:07]} Bg7 {[%clk 00:14:15]} {[%emt 00:00:03]} 8. c3 {[%clk
00:14:26]} {[%emt 00:00:10]} Rb8 {[%clk 00:12:58]} {[%emt 00:01:28]} 9. Qc2
{[%clk 00:14:30]} {[%emt 00:00:05]} Ng4 {[%clk 00:11:05]} {[%emt 00:02:02]} 10.
Bg5 {[%clk 00:13:58]} {[%emt 00:00:42]} h6 {[%clk 00:11:13]} {[%emt 00:00:02]}
11. Bh4 {[%clk 00:14:05]} {[%emt 00:00:03]} g5 {[%clk 00:11:21]} {[%emt
00:00:02]} 12. Bg3 {[%clk 00:14:14]} {[%emt 00:00:01]} f5 {[%clk 00:11:29]}
{[%emt 00:00:02]} 13. exf5 {[%clk 00:11:35]} {[%emt 00:02:49]} Bxf5 {[%clk
00:11:37]} {[%emt 00:00:02]} 14. Nc4 {[%clk 00:10:27]} {[%emt 00:01:18]} O-O
{[%clk 00:06:51]} {[%emt 00:04:55]} 15. h4 {[%clk 00:09:02]} {[%emt 00:01:35]}
Qe8 {[%clk 00:06:52]} {[%emt 00:00:10]} 16. hxg5 {[%clk 00:06:56]} {[%emt
00:02:16]} hxg5 {[%clk 00:07:00]} {[%emt 00:00:02]} 17. O-O-O {[%clk 00:06:41]}
{[%emt 00:00:26]} Qc8 {[%clk 00:02:19]} {[%emt 00:04:51]} 18. Rh5 {[%clk
00:05:16]} {[%emt 00:01:35]} Bg6 {[%clk 00:01:05]} {[%emt 00:01:24]} 19. Rhh1
{[%clk 00:04:50]} {[%emt 00:00:36]} Qa6 {[%clk 00:01:09]} {[%emt 00:00:06]} 20.
a3 {[%clk 00:04:46]} {[%emt 00:00:13]} Qb5 {[%clk 00:00:41]} {[%emt 00:00:39]}
21. Qe2 {[%clk 00:03:59]} {[%emt 00:00:57]} e5 {[%clk 00:00:36]} {[%emt
00:00:15]} 22. Nxd6 {[%clk 00:03:54]} {[%emt 00:00:15]} Qb3 {[%clk 00:00:44]}
{[%emt 00:00:02]} 23. Nc4 {[%clk 00:03:28]} {[%emt 00:00:36]} Qa2 {[%clk
00:00:17]} {[%emt 00:00:37]} 24. Nxg5 {[%clk 00:03:17]} {[%emt 00:00:21]} e4
{[%clk 00:00:19]} {[%emt 00:00:08]} 25. Nxe4 {[%clk 00:01:53]} {[%emt
00:01:34]} Rb3 {[%clk 00:00:12]} {[%emt 00:00:17]} 26. Qxg4 {[%clk 00:01:11]}
{[%emt 00:00:52]} Bf5 {[%clk 00:00:17]} {[%emt 00:00:06]} 27. Qg5 {[%clk
00:00:31]} {[%emt 00:00:49]} Bxe4 {[%clk 00:00:18]} {[%emt 00:00:08]} 28. dxe4
{[%clk 00:00:28]} {[%emt 00:00:14]} Rxc3+ {[%clk 00:00:17]} {[%emt 00:00:12]}
29. bxc3 {[%clk 00:00:33]} {[%emt 00:00:04]} Qa1+ {[%clk 00:00:24]} {[%emt
00:00:04]} 30. Kd2 {[%clk 00:00:17]} {[%emt 00:00:26]} Qxc3+ {[%clk 00:00:32]}
{[%emt 00:00:02]} 31. Ke2 {[%clk 00:00:24]} {[%emt 00:00:03]} Qxc4+ {[%clk
00:00:35]} {[%emt 00:00:07]} 32. Rd3 {[%clk 00:00:31]} {[%emt 00:00:03]} Qxe4+
{[%clk 00:00:22]} {[%emt 00:00:23]} 33. Qe3 {[%clk 00:00:19]} {[%emt 00:00:22]}
Qg4+ {[%clk 00:00:31]} {[%emt 00:00:01]} 34. Kf1 {[%clk 00:00:23]} {[%emt
00:00:06]} c4 {[%clk 00:00:40]} {[%emt 00:00:02]} 35. Rd2 {[%clk 00:00:14]}
{[%emt 00:00:19]} c3 {[%clk 00:00:45]} {[%emt 00:00:05]} 36. Re2 {[%clk
00:00:22]} {[%emt 00:00:02]} Qa4 {[%clk 00:00:15]} {[%emt 00:00:40]} 37. Qe6+
{[%clk 00:00:25]} {[%emt 00:00:06]} Rf7 {[%clk 00:00:25]} {[%emt 00:00:01]} 38.
Qc8+ {[%clk 00:00:16]} {[%emt 00:00:20]} Bf8 {[%clk 00:00:21]} {[%emt
00:00:14]} 39. Rh4 {[%clk 00:00:24]} {[%emt 00:00:01]} Qd1+ {[%clk 00:00:21]}
{[%emt 00:00:09]} 40. Re1 {[%clk 00:00:33]} {[%emt 00:00:01]} Qd3+ {[%clk
00:00:23]} {[%emt 00:00:08]} 41. Kg1 {[%clk 00:00:42]} {[%emt 00:00:02]} c2
{[%clk 00:00:30]} {[%emt 00:00:03]} 42. Qg4+ {[%clk 00:00:50]} {[%emt
00:00:02]} Bg7 {[%clk 00:00:34]} {[%emt 00:00:06]} 43. Re8+ {[%clk 00:00:52]}
{[%emt 00:00:08]} Rf8 {[%clk 00:00:43]} 44. Qe6# {[%clk 00:01:01]} {[%emt
00:00:01]} 1-0

[Event "British Rapidplay Championship 2023"]
[Site "Mercure Bradford, Bankfield Hotel"]
[Date "2023.04.15"]
[Round "2.8"]
[White "Makkar, Rajat"]
[Black "Hall, James"]
[Result "1-0"]
[TimeControl "15 minutes plus 10 seconds per move"]
[WhiteElo "2297"]
[BlackElo "1809"]

1. d4 {[%clk 00:15:15]} {[%emt 00:00:04]} Nf6 {[%clk 00:15:18]} {[%emt
00:00:03]} 2. Nc3 {[%clk 00:15:23]} {[%emt 00:00:01]} d5 {[%clk 00:15:26]}
{[%emt 00:00:02]} 3. Bf4 {[%clk 00:15:32]} {[%emt 00:00:02]} Nc6 {[%clk
00:15:35]} {[%emt 00:00:02]} 4. Nb5 {[%clk 00:14:46]} {[%emt 00:00:56]} e5
{[%clk 00:15:17]} {[%emt 00:00:55]} 5. Bxe5 {[%clk 00:14:34]} Ne4 {[%clk
00:15:05]} {[%emt 00:00:16]} 6. Nxc7+ {[%clk 00:12:19]} {[%emt 00:02:26]} Kd7
{[%clk 00:15:00]} {[%emt 00:00:14]} 7. c3 {[%clk 00:11:36]} {[%emt 00:00:53]}
Nxe5 {[%clk 00:12:21]} {[%emt 00:02:49]} 8. Nxa8 {[%clk 00:08:24]} {[%emt
00:03:22]} Qa5 {[%clk 00:10:04]} {[%emt 00:02:27]} 9. g3 {[%clk 00:06:34]}
{[%emt 00:02:00]} Nxc3 {[%clk 00:09:00]} {[%emt 00:01:14]} 10. Bh3+ {[%clk
00:06:42]} {[%emt 00:00:02]} Kd8 {[%clk 00:08:48]} {[%emt 00:00:22]} 11. bxc3
{[%clk 00:06:48]} {[%emt 00:00:04]} Bxh3 {[%clk 00:05:17]} {[%emt 00:03:40]} 12.
Nxh3 {[%clk 00:06:54]} {[%emt 00:00:04]} Nc4 {[%clk 00:05:05]} {[%emt
00:00:23]} 13. O-O {[%clk 00:06:49]} {[%emt 00:00:14]} Be7 {[%clk 00:02:58]}
{[%emt 00:02:17]} 14. e4 {[%clk 00:06:41]} {[%emt 00:00:18]} Kc8 {[%clk
00:02:50]} {[%emt 00:00:19]} 15. exd5 {[%clk 00:06:10]} {[%emt 00:00:41]} Kb8
{[%clk 00:02:49]} {[%emt 00:00:11]} 16. Qe2 {[%clk 00:06:16]} {[%emt 00:00:04]}
Qb5 {[%clk 00:02:07]} {[%emt 00:00:53]} 17. Qxe7 {[%clk 00:06:16]} {[%emt
00:00:09]} Re8 {[%clk 00:02:15]} {[%emt 00:00:01]} 18. Nc7 {[%clk 00:06:09]}
{[%emt 00:00:17]} Rxe7 {[%clk 00:01:53]} {[%emt 00:00:32]} 19. Nxb5 {[%clk
00:06:17]} {[%emt 00:00:02]} Nd2 {[%clk 00:02:02]} {[%emt 00:00:01]} 20. d6
{[%clk 00:06:04]} {[%emt 00:00:23]} Rd7 {[%clk 00:01:56]} {[%emt 00:00:16]} 21.
Rfd1 {[%clk 00:06:07]} {[%emt 00:00:07]} Nc4 {[%clk 00:01:56]} {[%emt
00:00:10]} 22. Re1 {[%clk 00:06:13]} {[%emt 00:00:04]} Rd8 {[%clk 00:01:36]}
{[%emt 00:00:30]} 23. d7 {[%clk 00:06:15]} {[%emt 00:00:08]} a6 {[%clk
00:01:43]} {[%emt 00:00:04]} 24. Re8 {[%clk 00:06:21]} {[%emt 00:00:03]} 1-0

[Event "British Rapidplay Championship 2023"]
[Site "Mercure Bradford, Bankfield Hotel"]
[Date "2023.04.15"]
[Round "2.9"]
[White "Singh, Amrik J"]
[Black "Ismail, Mohammed Aayan"]
[Result "0-1"]
[TimeControl "15 minutes plus 10 seconds per move"]
[WhiteElo "1855"]
[BlackElo "2269"]

1. e4 {[%clk 00:15:18]} {[%emt 00:00:04]} c6 {[%clk 00:15:19]} 2. f4 {[%clk
00:15:27]} d5 {[%clk 00:15:28]} 3. e5 {[%clk 00:15:36]} {[%emt 00:00:02]} c5
{[%clk 00:15:37]} 4. c3 {[%clk 00:15:44]} {[%emt 00:00:02]} Nc6 {[%clk
00:14:59]} {[%emt 00:00:48]} 5. Nf3 {[%clk 00:15:50]} {[%emt 00:00:04]} Bg4
{[%clk 00:15:01]} {[%emt 00:00:07]} 6. d3 {[%clk 00:15:59]} {[%emt 00:00:02]}
e6 {[%clk 00:15:05]} {[%emt 00:00:06]} 7. Be2 {[%clk 00:16:07]} {[%emt
00:00:02]} Nh6 {[%clk 00:14:39]} {[%emt 00:00:53]} 8. Na3 {[%clk 00:16:15]} Nf5
{[%clk 00:14:04]} {[%emt 00:00:31]} 9. Nc2 {[%clk 00:16:23]} {[%emt 00:00:02]}
h5 {[%clk 00:13:20]} {[%emt 00:00:54]} 10. O-O {[%clk 00:16:31]} {[%emt
00:00:02]} h4 {[%clk 00:12:58]} {[%emt 00:00:31]} 11. Ne3 {[%clk 00:16:07]}
{[%emt 00:00:34]} Nxe3 {[%clk 00:12:55]} {[%emt 00:00:14]} 12. Bxe3 {[%clk
00:16:15]} {[%emt 00:00:02]} Be7 {[%clk 00:12:17]} {[%emt 00:00:48]} 13. a3
{[%clk 00:16:06]} {[%emt 00:00:19]} O-O {[%clk 00:11:29]} {[%emt 00:00:58]} 14.
Bf2 {[%clk 00:15:38]} {[%emt 00:00:38]} a5 {[%clk 00:09:54]} {[%emt 00:01:45]}
15. Qe1 {[%clk 00:15:39]} {[%emt 00:00:09]} a4 {[%clk 00:08:37]} {[%emt
00:01:27]} 16. Rd1 {[%clk 00:14:36]} {[%emt 00:01:13]} b5 {[%clk 00:07:20]}
{[%emt 00:01:27]} 17. c4 {[%clk 00:14:08]} {[%emt 00:00:38]} b4 {[%clk
00:06:19]} {[%emt 00:01:12]} 18. Rd2 {[%clk 00:13:28]} {[%emt 00:00:50]} h3
{[%clk 00:05:30]} {[%emt 00:00:59]} 19. Ng5 {[%clk 00:12:06]} {[%emt 00:01:31]}
Bxe2 {[%clk 00:04:29]} {[%emt 00:01:11]} 20. Qxe2 {[%clk 00:12:15]} Bxg5 {[%clk
00:04:20]} {[%emt 00:00:19]} 21. fxg5 {[%clk 00:12:23]} {[%emt 00:00:01]} hxg2
{[%clk 00:04:08]} {[%emt 00:00:23]} 22. Kxg2 {[%clk 00:12:18]} {[%emt
00:00:15]} Qxg5+ {[%clk 00:04:16]} {[%emt 00:00:03]} 23. Bg3 {[%clk 00:12:26]}
{[%emt 00:00:02]} Nd4 {[%clk 00:04:04]} {[%emt 00:00:22]} 24. Qf2 {[%clk
00:12:02]} {[%emt 00:00:34]} dxc4 {[%clk 00:03:57]} {[%emt 00:00:17]} 25. dxc4
{[%clk 00:12:03]} {[%emt 00:00:07]} bxa3 {[%clk 00:03:43]} {[%emt 00:00:25]} 26.
bxa3 {[%clk 00:12:10]} {[%emt 00:00:03]} Rab8 {[%clk 00:03:29]} {[%emt
00:00:25]} 27. Rb2 {[%clk 00:11:36]} {[%emt 00:00:43]} Rxb2 {[%clk 00:03:14]}
{[%emt 00:00:25]} 28. Qxb2 {[%clk 00:11:44]} {[%emt 00:00:02]} Nf5 {[%clk
00:02:52]} {[%emt 00:00:33]} 29. Re1 {[%clk 00:10:54]} {[%emt 00:01:00]} Rd8
{[%clk 00:02:41]} {[%emt 00:00:20]} 30. Qf2 {[%clk 00:10:45]} {[%emt 00:00:18]}
Rd2 {[%clk 00:02:03]} {[%emt 00:00:49]} 31. Re2 {[%clk 00:10:53]} {[%emt
00:00:01]} Ne3+ {[%clk 00:01:38]} {[%emt 00:00:36]} 32. Kf3 {[%clk 00:09:30]}
{[%emt 00:01:33]} Qf5+ {[%clk 00:00:33]} {[%emt 00:01:15]} 33. Bf4 {[%clk
00:09:18]} {[%emt 00:00:22]} Qh3+ {[%clk 00:00:32]} {[%emt 00:00:11]} 34. Bg3
{[%clk 00:09:02]} {[%emt 00:00:25]} Qf5+ {[%clk 00:00:34]} {[%emt 00:00:08]} 35.
Bf4 {[%clk 00:09:08]} {[%emt 00:00:04]} Ng4 {[%clk 00:00:39]} {[%emt 00:00:05]}
36. Qxc5 {[%clk 00:08:35]} {[%emt 00:00:43]} Rxe2 {[%clk 00:00:22]} {[%emt
00:00:27]} 37. Kxe2 {[%clk 00:07:30]} {[%emt 00:01:14]} Qxf4 {[%clk 00:00:31]}
{[%emt 00:00:02]} 38. Qd6 {[%clk 00:07:14]} {[%emt 00:00:25]} Qe3+ {[%clk
00:00:32]} {[%emt 00:00:09]} 39. Kd1 {[%clk 00:07:22]} {[%emt 00:00:03]} Nf2+
{[%clk 00:00:41]} {[%emt 00:00:02]} 40. Kc2 {[%clk 00:07:31]} Qe2+ {[%clk
00:00:48]} {[%emt 00:00:03]} 41. Qd2 {[%clk 00:07:25]} {[%emt 00:00:14]} Qxc4+
{[%clk 00:00:57]} {[%emt 00:00:02]} 42. Kb1 {[%clk 00:07:33]} {[%emt 00:00:02]}
Qb3+ {[%clk 00:00:56]} {[%emt 00:00:16]} 0-1